Workbook

Sheet Sheet1
A1: 铜仁市2023年“千名英才·智汇铜仁”(江口县)引才岗位考试总成绩汇总表
A2: 序号 | B2: 准考证号 | C2: 姓名 | D2: 单位代码 | E2: 引才单位名称 | F2: 岗位代码 | G2: 报考岗位名称 | H2: 笔试 成绩 | I2: 面试 成绩 | J2: 总成绩 | K2: 是否签约 | L2: 备注
A3: 1 | B3: 20231112053 | C3: 杨星禹 | D3: JK01 | E3: 贵州省江口中学 | F3: 01 | G3: 英语教师 | H3: 免试 | I3: 80.92 | J3: 80.92 | K3: 是
A4: 2 | B4: 20231112054 | C4: 梅旭霜 | D4: JK01 | E4: 贵州省江口中学 | F4: 01 | G4: 英语教师 | H4: 免试 | I4: 76.36 | J4: 76.36
A5: 3 | B5: 20231112055 | C5: 陈学礼 | D5: JK01 | E5: 贵州省江口中学 | F5: 02 | G5: 政治教师 | H5: 免试 | I5: 75.50 | J5: 75.50
A6: 4 | B6: 20231112056 | C6: 杨露 | D6: JK01 | E6: 贵州省江口中学 | F6: 02 | G6: 政治教师 | H6: 免试 | I6: 77.04 | J6: 77.04 | K6: 是
A7: 5 | B7: 20231112057 | C7: 杨晓芳 | D7: JK03 | E7: 江口县中医医院 | F7: 08 | G7: 临床医生 | H7: 免试 | I7: 72.76 | J7: 72.76 | K7: 是
A8: 6 | B8: 20231112001 | C8: 冉莎 | D8: JK04 | E8: 江口县妇幼保健院 | F8: 10 | G8: 工作人员 | H8: 78.4 | I8: 80.14 | J8: =H8*0.5+I8*0.5 -> 79.27
A9: 7 | B9: 20231112002 | C9: 徐雨 | D9: JK04 | E9: 江口县妇幼保健院 | F9: 10 | G9: 工作人员 | H9: 76.86 | I9: 78.48 | J9: =H9*0.5+I9*0.5 -> 77.67
A10: 8 | B10: 20231112003 | C10: 黄大伟 | D10: JK04 | E10: 江口县妇幼保健院 | F10: 10 | G10: 工作人员 | H10: 76.82 | I10: 82.88 | J10: =H10*0.5+I10*0.5 -> 79.85 | K10: 是
A11: 9 | C11: 黄烈林 | D11: JK05 | E11: 江口县民生项目监督特派组联络中心 | F11: 11 | G11: 工作人员 | H11: 免试 | I11: 82.20 | J11: 82.20 | K11: 是 | L11: 北京站
A12: 10 | B12: 20231112004 | C12: 潘蓉 | D12: JK06 | E12: 江口县非税收入服务中心 | F12: 12 | G12: 工作人员 | H12: 73.72 | I12: 76.94 | J12: =H12*0.5+I12*0.5 -> 75.33
A13: 11 | B13: 20231112005 | C13: 谢棋淇 | D13: JK06 | E13: 江口县非税收入服务中心 | F13: 12 | G13: 工作人员 | H13: 73.7 | I13: 82.98 | J13: =H13*0.5+I13*0.5 -> 78.34 | K13: 是
A14: 12 | B14: 20231112006 | C14: 刘阿敏 | D14: JK06 | E14: 江口县非税收入服务中心 | F14: 12 | G14: 工作人员 | H14: 73.68 | I14: 80.32 | J14: =H14*0.5+I14*0.5 -> 77.00
A15: 13 | C15: 胡涛进 | D15: JK07 | E15: 江口县机关事务中心 | F15: 13 | G15: 工作人员 | H15: 免试 | I15: 81.77 | J15: 81.77 | K15: 是 | L15: 北京站
A16: 14 | C16: 罗菀 | D16: JK08 | E16: 江口县交通运输综合行政执法大队 | F16: 14 | G16: 工作人员 | H16: 免试 | I16: 87.03 | J16: 87.03 | K16: 是 | L16: 北京站
A17: 15 | B17: 20231112007 | C17: 刘芫宏 | D17: JK09 | E17: 江口县交通运输服务中心 | F17: 15 | G17: 工作人员 | H17: 74.78 | I17: 86.40 | J17: =H17*0.5+I17*0.5 -> 80.59 | K17: 是
A18: 16 | B18: 20231112008 | C18: 赵世钰 | D18: JK09 | E18: 江口县交通运输服务中心 | F18: 15 | G18: 工作人员 | H18: 73.64 | I18: 82.12 | J18: =H18*0.5+I18*0.5 -> 77.88
A19: 17 | B19: 20231112009 | C19: 黄天业 | D19: JK09 | E19: 江口县交通运输服务中心 | F19: 15 | G19: 工作人员 | H19: 73.2 | I19: 81.24 | J19: =H19*0.5+I19*0.5 -> 77.22
A20: 18 | B20: 20231112010 | C20: 韩洪 | D20: JK10 | E20: 江口县公路养护中心 | F20: 16 | G20: 工作人员 | H20: 75.3 | I20: 弃考
A21: 19 | B21: 20231112011 | C21: 张洋 | D21: JK10 | E21: 江口县公路养护中心 | F21: 16 | G21: 工作人员 | H21: 74.72 | I21: 74.74 | J21: =H21*0.5+I21*0.5 -> 74.73
A22: 20 | B22: 20231112012 | C22: 姚荣良 | D22: JK10 | E22: 江口县公路养护中心 | F22: 16 | G22: 工作人员 | H22: 73.7 | I22: 83.38 | J22: 78.54 | K22: 是
A23: 21 | B23: 20231112013 | C23: 李易城 | D23: JK11 | E23: 江口县营林站 | F23: 17 | G23: 工作人员 | H23: 65.24 | I23: 78.38 | J23: 71.81
A24: 22 | B24: 20231112014 | C24: 杨夫 | D24: JK11 | E24: 江口县营林站 | F24: 17 | G24: 工作人员 | H24: 65.26 | I24: 79.12 | J24: 72.19 | K24: 是
A25: 23 | B25: 20231112015 | C25: 汪倩倩 | D25: JK12 | E25: 江口县国有林场 | F25: 18 | G25: 工作人员 | H25: 75.28 | I25: 80.66 | J25: 77.97 | K25: 是
A26: 24 | B26: 20231112016 | C26: 邓明舟 | D26: JK12 | E26: 江口县国有林场 | F26: 18 | G26: 工作人员 | H26: 70.02 | I26: 80.50 | J26: 75.26
A27: 25 | B27: 20231112017 | C27: 李坤 | D27: JK12 | E27: 江口县国有林场 | F27: 18 | G27: 工作人员 | H27: 63.12 | I27: 79.50 | J27: 71.31
A28: 26 | B28: 20231112018 | C28: 温明雄 | D28: JK13 | E28: 江口县城乡供排水管理站 | F28: 19 | G28: 工作人员 | H28: 78.46 | I28: 79.42 | J28: 78.94 | K28: 是
A29: 27 | B29: 20231112019 | C29: 程江宁 | D29: JK13 | E29: 江口县城乡供排水管理站 | F29: 19 | G29: 工作人员 | H29: 71.06 | I29: 81.24 | J29: 76.15
A30: 28 | B30: 20231112020 | C30: 姚开心 | D30: JK13 | E30: 江口县城乡供排水管理站 | F30: 19 | G30: 工作人员 | H30: 68.44 | I30: 76.58 | J30: 72.51
A31: 29 | B31: 20231112021 | C31: 陶峰 | D31: JK14 | E31: 江口县水务综合行政执法大队 | F31: 20 | G31: 工作人员 | H31: 76.26 | I31: 83.68 | J31: 79.97 | K31: 是
A32: 30 | B32: 20231112022 | C32: 任名冬 | D32: JK14 | E32: 江口县水务综合行政执法大队 | F32: 20 | G32: 工作人员 | H32: 75.3 | I32: 75.98 | J32: 75.64
A33: 31 | B33: 20231112023 | C33: 朱慧敏 | D33: JK14 | E33: 江口县水务综合行政执法大队 | F33: 20 | G33: 工作人员 | H33: 74.72 | I33: 84.20 | J33: 79.46
A34: 32 | B34: 20231112024 | C34: 涂玉 | D34: JK15 | E34: 江口县文物保护中心 | F34: 21 | G34: 工作人员 | H34: 78.42 | I34: 82.10 | J34: 80.26 | K34: 是
A35: 33 | B35: 20231112025 | C35: 杨群 | D35: JK15 | E35: 江口县文物保护中心 | F35: 21 | G35: 工作人员 | H35: 76.34 | I35: 79.90 | J35: 78.12
A36: 34 | B36: 20231112026 | C36: 罗桥贵 | D36: JK15 | E36: 江口县文物保护中心 | F36: 21 | G36: 工作人员 | H36: 75.78 | I36: 79.66 | J36: 77.72
A37: 35 | B37: 20231112027 | C37: 李鹏 | D37: JK16 | E37: 江口县保障性住房服务中心 | F37: 22 | G37: 工作人员 | H37: 83.68 | I37: 75.32 | J37: 79.50 | K37: 是
A38: 36 | B38: 20231112028 | C38: 田李杰 | D38: JK16 | E38: 江口县保障性住房服务中心 | F38: 22 | G38: 工作人员 | H38: 78.42 | I38: 77.04 | J38: 77.73
A39: 37 | B39: 20231112029 | C39: 张松 | D39: JK16 | E39: 江口县保障性住房服务中心 | F39: 22 | G39: 工作人员 | H39: 77.42 | I39: 75.76 | J39: 76.59
A40: 38 | B40: 20231112030 | C40: 黄曼婕 | D40: JK17 | E40: 江口县自然资源综合行政执法大队 | F40: 23 | G40: 工作人员 | H40: 79.54 | I40: 77.88 | J40: 78.71
A41: 39 | B41: 20231112031 | C41: 杨怀宇 | D41: JK17 | E41: 江口县自然资源综合行政执法大队 | F41: 23 | G41: 工作人员 | H41: 76.86 | I41: 83.06 | J41: 79.96 | K41: 是
A42: 40 | B42: 20231112032 | C42: 黄远丽 | D42: JK17 | E42: 江口县自然资源综合行政执法大队 | F42: 23 | G42: 工作人员 | H42: 75.3 | I42: 弃考
A43: 41 | B43: 20231112033 | C43: 冯小芳 | D43: JK17 | E43: 江口县自然资源综合行政执法大队 | F43: 23 | G43: 工作人员 | H43: 75.3 | I43: 78.70 | J43: 77.00
A44: 42 | B44: 20231112034 | C44: 龙锦民 | D44: JK18 | E44: 江口县不动产登记事务中心 | F44: 24 | G44: 工作人员 | H44: 76.36 | I44: 弃考
A45: 43 | B45: 20231112035 | C45: 柏多 | D45: JK18 | E45: 江口县不动产登记事务中心 | F45: 24 | G45: 工作人员 | H45: 76.34 | I45: 74.62 | J45: =H45*0.5+I45*0.5 -> 75.48
A46: 44 | B46: 20231112036 | C46: 应亚勇 | D46: JK18 | E46: 江口县不动产登记事务中心 | F46: 24 | G46: 工作人员 | H46: 74.22 | I46: 81.84 | J46: 78.03 | K46: 是
A47: 45 | B47: 20231112037 | C47: 张代林 | D47: JK18 | E47: 江口县不动产登记事务中心 | F47: 24 | G47: 工作人员 | H47: 74.22 | I47: 74.90 | J47: 74.56
A48: 46 | B48: 20231112038 | C48: 罗小娇 | D48: JK19 | E48: 江口县山林土地权属纠纷调解中心 | F48: 25 | G48: 工作人员 | H48: 78.42 | I48: 80.38 | J48: 79.40 | K48: 是
A49: 47 | B49: 20231112039 | C49: 高方琴 | D49: JK19 | E49: 江口县山林土地权属纠纷调解中心 | F49: 25 | G49: 工作人员 | H49: 78.42 | I49: 75.76 | J49: 77.09
A50: 48 | B50: 20231112040 | C50: 徐江 | D50: JK19 | E50: 江口县山林土地权属纠纷调解中心 | F50: 25 | G50: 工作人员 | H50: 76.32 | I50: 75.08 | J50: 75.70
A51: 49 | B51: 2023090131 | C51: 莫误程 | D51: JK20 | E51: 江口县城市管理综合行政执法大队 | F51: 26 | G51: 工作人员 | H51: 免试 | I51: 75.80 | J51: 75.80 | K51: 是 | L51: 长沙站
A52: 50 | B52: 20231112041 | C52: 周磊 | D52: JK21 | E52: 江口县普查中心 | F52: 27 | G52: 工作人员 | H52: 78.44 | I52: 74.66 | J52: =H52*0.5+I52*0.5 -> 76.55
A53: 51 | B53: 20231112042 | C53: 袁奎 | D53: JK21 | E53: 江口县普查中心 | F53: 27 | G53: 工作人员 | H53: 71.04 | I53: 80.17 | J53: =H53*0.5+I53*0.5 -> 75.61
A54: 52 | B54: 20231112043 | C54: 简益雪 | D54: JK21 | E54: 江口县普查中心 | F54: 27 | G54: 工作人员 | H54: 71.58 | I54: 81.66 | J54: =H54*0.5+I54*0.5 -> 76.62 | K54: 是
A55: 53 | B55: 20231112044 | C55: 罗银繁 | D55: JK22 | E55: 江口县绿色金融发展中心 | F55: 28 | G55: 工作人员 | H55: 78.98 | I55: 74.94 | J55: =H55*0.5+I55*0.5 -> 76.96 | K55: 是
A56: 54 | B56: 20231112045 | C56: 彭国兵 | D56: JK22 | E56: 江口县绿色金融发展中心 | F56: 28 | G56: 工作人员 | H56: 77.44 | I56: 75.88 | J56: =H56*0.5+I56*0.5 -> 76.66
A57: 55 | B57: 20231112046 | C57: 罗通 | D57: JK22 | E57: 江口县绿色金融发展中心 | F57: 28 | G57: 工作人员 | H57: 77.38 | I57: 75.00 | J57: =H57*0.5+I57*0.5 -> 76.19
A58: 56 | B58: 20231112047 | C58: 文莉 | D58: JK23 | E58: 江口县青少年活动中心 | F58: 29 | G58: 工作人员 | H58: 75.82 | I58: 74.84 | J58: 75.33
A59: 57 | B59: 20231112048 | C59: 田孝林 | D59: JK23 | E59: 江口县青少年活动中心 | F59: 29 | G59: 工作人员 | H59: 75.74 | I59: 74.94 | J59: 75.34
A60: 58 | B60: 20231112049 | C60: 熊成毅 | D60: JK23 | E60: 江口县青少年活动中心 | F60: 29 | G60: 工作人员 | H60: 74.74 | I60: 78.64 | J60: 76.69 | K60: 是
A61: 59 | B61: 20231112050 | C61: 李清华 | D61: JK24 | E61: 江口县电大工作站 | F61: 30 | G61: 工作人员 | H61: 85.28 | I61: 75.34 | J61: 80.31 | K61: 是
A62: 60 | B62: 20231112051 | C62: 杨伸仪 | D62: JK24 | E62: 江口县电大工作站 | F62: 30 | G62: 工作人员 | H62: 72.16 | I62: 77.32 | J62: 74.74
A63: 61 | B63: 20231112052 | C63: 刘仁兵 | D63: JK24 | E63: 江口县电大工作站 | F63: 30 | G63: 工作人员 | H63: 75.24 | I63: 72.82 | J63: 74.03
